[Event "*** SCC Grand Prix: Titled Tuesday Blitz"]
[Site "Chess.com"]
[Date "2020.10.06"]
[Round "2"]
[White "Angel_Hranitel_37"]
[Black "VinzentSpitzl"]
[Result "1-0"]
[WhiteElo "2524"]
[BlackElo "2317"]
[TimeControl "180+1"]
[EndTime "10:18:39 PDT"]
[Termination "Angel_Hranitel_37 won on time"]

1. d4 {[%clk 0:02:59.9]} 1... Nf6 {[%clk 0:02:58.6]} 2. Nf3 {[%clk 0:03:00.4]}
2... g6 {[%clk 0:02:58.6]} 3. g3 {[%clk 0:03:00.9]} 3... Bg7 {[%clk 0:02:58.7]}
4. Bg2 {[%clk 0:03:01.3]} 4... d5 {[%clk 0:02:59]} 5. O-O {[%clk 0:03:00.7]}
5... O-O {[%clk 0:02:58.6]} 6. c4 {[%clk 0:03:01]} 6... c6 {[%clk 0:02:58.9]} 7.
Qb3 {[%clk 0:03:00.7]} 7... Qb6 {[%clk 0:02:41.6]} 8. Nc3 {[%clk 0:02:59]} 8...
Bf5 {[%clk 0:02:33.7]} 9. Na4 {[%clk 0:02:55.1]} 9... Qxb3 {[%clk 0:02:29.6]}
10. axb3 {[%clk 0:02:56]} 10... Nbd7 {[%clk 0:02:30]} 11. Bf4 {[%clk 0:02:42.7]}
11... Ne4 {[%clk 0:02:22.1]} 12. Rfd1 {[%clk 0:02:32.7]} 12... f6 {[%clk
0:02:06.6]} 13. Nh4 {[%clk 0:02:10.4]} 13... Be6 {[%clk 0:01:53.7]} 14. Bxe4
{[%clk 0:00:59.6]} 14... dxe4 {[%clk 0:01:53.3]} 15. Ng2 {[%clk 0:00:56.4]}
15... g5 {[%clk 0:01:30.2]} 16. Bd2 {[%clk 0:00:56.6]} 16... b5 {[%clk
0:01:29.9]} 17. Nc3 {[%clk 0:00:37.1]} 17... bxc4 {[%clk 0:01:25.4]} 18. bxc4
{[%clk 0:00:38]} 18... Bxc4 {[%clk 0:01:25.9]} 19. Ne3 {[%clk 0:00:37.8]} 19...
Bb5 {[%clk 0:01:19.3]} 20. Nxb5 {[%clk 0:00:20.6]} 20... cxb5 {[%clk 0:01:19.2]}
21. Bb4 {[%clk 0:00:21.5]} 21... Rf7 {[%clk 0:00:56.7]} 22. Nd5 {[%clk
0:00:21.4]} 22... f5 {[%clk 0:00:42.1]} 23. Nxe7+ {[%clk 0:00:16.6]} 23... Kh8
{[%clk 0:00:42.2]} 24. Nd5 {[%clk 0:00:14.6]} 24... f4 {[%clk 0:00:26.7]} 25.
Ra6 {[%clk 0:00:14.7]} 25... fxg3 {[%clk 0:00:21.5]} 26. hxg3 {[%clk 0:00:14.6]}
26... Rc8 {[%clk 0:00:18.3]} 27. Rxa7 {[%clk 0:00:14]} 27... Rc2 {[%clk
0:00:18.5]} 28. Rd2 {[%clk 0:00:08.2]} 28... Rc1+ {[%clk 0:00:18.4]} 29. Kg2
{[%clk 0:00:08.2]} 29... h5 {[%clk 0:00:17.2]} 30. Nb6 {[%clk 0:00:08.2]} 30...
Ne5 {[%clk 0:00:15.5]} 31. Ra8+ {[%clk 0:00:08.6]} 31... Kh7 {[%clk 0:00:13.4]}
32. dxe5 {[%clk 0:00:08.8]} 32... Bxe5 {[%clk 0:00:13.8]} 33. Rd7 {[%clk
0:00:08.9]} 33... Rxd7 {[%clk 0:00:13]} 34. Nxd7 {[%clk 0:00:09.8]} 34... Bxb2
{[%clk 0:00:13.7]} 35. Ra7 {[%clk 0:00:09.9]} 35... Rb1 {[%clk 0:00:11.5]} 36.
Nf6+ {[%clk 0:00:07]} 36... Kg6 {[%clk 0:00:11.7]} 37. Nxe4 {[%clk 0:00:07.9]}
37... Bd4 {[%clk 0:00:12]} 38. Bc5 {[%clk 0:00:07.9]} 38... Be5 {[%clk
0:00:11.6]} 39. e3 {[%clk 0:00:07.9]} 39... b4 {[%clk 0:00:11.1]} 40. Ra6+
{[%clk 0:00:08.5]} 40... Kf5 {[%clk 0:00:10]} 41. Nd2 {[%clk 0:00:09.1]} 41...
Rd1 {[%clk 0:00:06.8]} 42. Bxb4 {[%clk 0:00:08.9]} 42... g4 {[%clk 0:00:06.2]}
43. Ra5 {[%clk 0:00:09.3]} 43... Ke6 {[%clk 0:00:05.2]} 44. Nc4 {[%clk
0:00:09.5]} 44... Bc7 {[%clk 0:00:05.2]} 45. Ra6+ {[%clk 0:00:09.5]} 45... Kd7
{[%clk 0:00:04.9]} 46. Ba5 {[%clk 0:00:08.2]} 46... Bb8 {[%clk 0:00:03.6]} 47.
Rh6 {[%clk 0:00:07.6]} 47... Rd5 {[%clk 0:00:03.8]} 48. Bb4 {[%clk 0:00:07.4]}
48... Rb5 {[%clk 0:00:03.3]} 49. Bc3 {[%clk 0:00:07.3]} 49... Ke7 {[%clk
0:00:01.4]} 50. Nb6 {[%clk 0:00:08.2]} 1-0

[Event "*** SCC Grand Prix: Titled Tuesday Blitz"]
[Site "Chess.com"]
[Date "2020.10.06"]
[Round "2"]
[White "zajka-molotok"]
[Black "sopo-tereladze"]
[Result "1-0"]
[WhiteElo "2478"]
[BlackElo "2302"]
[TimeControl "180+1"]
[EndTime "10:18:39 PDT"]
[Termination "zajka-molotok won by resignation"]

1. d4 {[%clk 0:03:00.9]} 1... Nf6 {[%clk 0:02:59.1]} 2. c4 {[%clk 0:03:00.2]}
2... e6 {[%clk 0:03:00]} 3. Nc3 {[%clk 0:02:59.6]} 3... Bb4 {[%clk 0:03:00.4]}
4. Qc2 {[%clk 0:02:57.7]} 4... O-O {[%clk 0:02:59]} 5. Nf3 {[%clk 0:02:53]} 5...
Nc6 {[%clk 0:02:56.8]} 6. e4 {[%clk 0:02:42.1]} 6... d6 {[%clk 0:02:54.8]} 7.
Bd3 {[%clk 0:02:41.1]} 7... e5 {[%clk 0:02:52]} 8. d5 {[%clk 0:02:14.2]} 8...
Nd4 {[%clk 0:02:49.2]} 9. Nxd4 {[%clk 0:02:10.9]} 9... exd4 {[%clk 0:02:47.5]}
10. a3 {[%clk 0:02:11.1]} 10... Ba5 {[%clk 0:02:47.4]} 11. b4 {[%clk 0:02:10.6]}
11... dxc3 {[%clk 0:02:48.3]} 12. bxa5 {[%clk 0:02:10.5]} 12... Re8 {[%clk
0:02:46.7]} 13. O-O {[%clk 0:02:09.3]} 13... c5 {[%clk 0:02:38.1]} 14. Bg5
{[%clk 0:02:01.6]} 14... Qe7 {[%clk 0:02:14.5]} 15. Rae1 {[%clk 0:01:48.6]}
15... Qe5 {[%clk 0:02:12.7]} 16. f4 {[%clk 0:01:27.3]} 16... Qd4+ {[%clk
0:02:03]} 17. Kh1 {[%clk 0:01:27.3]} 17... Ng4 {[%clk 0:01:56]} 18. Rf3 {[%clk
0:01:23.4]} 18... Bf5 {[%clk 0:01:51.3]} 19. h3 {[%clk 0:01:15.6]} 19... Bxe4
{[%clk 0:01:23]} 20. Rxe4 {[%clk 0:00:48.1]} 20... Rxe4 {[%clk 0:01:17.5]} 21.
Bxe4 {[%clk 0:00:48.2]} 21... Ne3 {[%clk 0:01:07]} 22. Bxh7+ {[%clk 0:00:45.5]}
22... Kh8 {[%clk 0:01:05]} 23. Qf2 {[%clk 0:00:28.1]} 23... c2 {[%clk
0:00:57.8]} 24. Bxc2 {[%clk 0:00:25.1]} 24... Nxc2 {[%clk 0:00:54.6]} 25. Qxc2
{[%clk 0:00:24.5]} 25... Re8 {[%clk 0:00:49.8]} 26. Bh4 {[%clk 0:00:24.3]} 26...
Re4 {[%clk 0:00:32.2]} 27. Bf2 {[%clk 0:00:22.9]} 27... Qxc4 {[%clk 0:00:30.8]}
28. Qxc4 {[%clk 0:00:22.6]} 28... Rxc4 {[%clk 0:00:31.7]} 29. g3 {[%clk
0:00:17.4]} 29... Ra4 {[%clk 0:00:30.2]} 30. Rb3 {[%clk 0:00:16.7]} 30... Rxa5
{[%clk 0:00:30]} 31. Rxb7 {[%clk 0:00:16.7]} 31... Rxa3 {[%clk 0:00:22.8]} 32.
Rd7 {[%clk 0:00:16.7]} 32... c4 {[%clk 0:00:17.9]} 33. Rxd6 {[%clk 0:00:16.8]}
33... c3 {[%clk 0:00:17]} 34. Rc6 {[%clk 0:00:17]} 34... Ra2 {[%clk 0:00:14.6]}
35. Kg2 {[%clk 0:00:17.1]} 35... c2 {[%clk 0:00:15.5]} 36. Kf3 {[%clk
0:00:17.5]} 36... Kh7 {[%clk 0:00:11.8]} 37. d6 {[%clk 0:00:17.4]} 37... Ra3+
{[%clk 0:00:12]} 38. Be3 {[%clk 0:00:17.1]} 38... Rd3 {[%clk 0:00:11.1]} 39. Ke4
{[%clk 0:00:15.4]} 39... Rd1 {[%clk 0:00:09.8]} 40. Rxc2 {[%clk 0:00:15.1]}
40... Rxd6 {[%clk 0:00:09.5]} 41. Bxa7 {[%clk 0:00:15.1]} 41... Re6+ {[%clk
0:00:08.9]} 42. Kf3 {[%clk 0:00:15.4]} 42... Rh6 {[%clk 0:00:09.7]} 43. h4
{[%clk 0:00:15]} 43... Rd6 {[%clk 0:00:09.9]} 44. Be3 {[%clk 0:00:14.7]} 44...
f5 {[%clk 0:00:09.2]} 45. g4 {[%clk 0:00:14.8]} 45... fxg4+ {[%clk 0:00:08.6]}
46. Kxg4 {[%clk 0:00:15.7]} 46... Rd3 {[%clk 0:00:07.9]} 47. Kf3 {[%clk
0:00:15.5]} 47... Ra3 {[%clk 0:00:07.3]} 48. Rg2 {[%clk 0:00:15.6]} 48... Rb3
{[%clk 0:00:06]} 49. Rg5 {[%clk 0:00:15.6]} 49... Rb7 {[%clk 0:00:04.8]} 50. Re5
{[%clk 0:00:15.5]} 50... Rb3 {[%clk 0:00:05.7]} 51. Kg4 {[%clk 0:00:15.7]} 51...
Kg6 {[%clk 0:00:05.1]} 52. h5+ {[%clk 0:00:15.6]} 52... Kh7 {[%clk 0:00:05]} 53.
Bd4 {[%clk 0:00:15.3]} 53... Rb1 {[%clk 0:00:03.9]} 54. Re7 {[%clk 0:00:14.2]}
54... Kh6 {[%clk 0:00:02]} 55. Bxg7+ {[%clk 0:00:13.4]} 55... Kh7 {[%clk
0:00:01.8]} 56. Be5+ {[%clk 0:00:11.8]} 1-0

[Event "*** SCC Grand Prix: Titled Tuesday Blitz"]
[Site "Chess.com"]
[Date "2020.10.06"]
[Round "2"]
[White "TimofeevAr"]
[Black "OhanyanEminChess"]
[Result "0-1"]
[WhiteElo "2835"]
[BlackElo "2578"]
[TimeControl "180+1"]
[EndTime "10:18:41 PDT"]
[Termination "OhanyanEminChess won by checkmate"]

1. e4 {[%clk 0:03:00.9]} 1... e5 {[%clk 0:03:00.1]} 2. Nf3 {[%clk 0:03:00.5]}
2... Nc6 {[%clk 0:02:59.1]} 3. Nc3 {[%clk 0:03:00.1]} 3... Nf6 {[%clk
0:02:58.9]} 4. Be2 {[%clk 0:02:59.8]} 4... d5 {[%clk 0:02:49.8]} 5. exd5 {[%clk
0:02:58.9]} 5... Nxd5 {[%clk 0:02:50.7]} 6. O-O {[%clk 0:02:56.7]} 6... Nxc3
{[%clk 0:02:50]} 7. bxc3 {[%clk 0:02:56.3]} 7... Bd6 {[%clk 0:02:50.4]} 8. d3
{[%clk 0:02:54.6]} 8... O-O {[%clk 0:02:49.7]} 9. Re1 {[%clk 0:02:54]} 9... Bf5
{[%clk 0:02:44.4]} 10. Ng5 {[%clk 0:02:43.9]} 10... h6 {[%clk 0:02:40.3]} 11.
Ne4 {[%clk 0:02:43.2]} 11... Bxe4 {[%clk 0:02:40.3]} 12. dxe4 {[%clk 0:02:43.2]}
12... Bc5 {[%clk 0:02:40.8]} 13. Bd3 {[%clk 0:02:40.9]} 13... Qf6 {[%clk
0:02:37]} 14. Qe2 {[%clk 0:02:39.9]} 14... Ne7 {[%clk 0:02:35.6]} 15. g3 {[%clk
0:02:37.6]} 15... Rad8 {[%clk 0:02:27.3]} 16. Kg2 {[%clk 0:02:37.1]} 16... Kh7
{[%clk 0:02:17.1]} 17. a4 {[%clk 0:02:35.3]} 17... a5 {[%clk 0:02:15.6]} 18. Rf1
{[%clk 0:02:31.9]} 18... Qg6 {[%clk 0:02:05.8]} 19. f4 {[%clk 0:02:26.4]} 19...
f6 {[%clk 0:02:05.3]} 20. Rb1 {[%clk 0:02:19.3]} 20... b6 {[%clk 0:02:04.2]} 21.
Bd2 {[%clk 0:02:15.1]} 21... Bd6 {[%clk 0:01:38]} 22. Rf3 {[%clk 0:02:09.7]}
22... Qe8 {[%clk 0:01:27.4]} 23. Bb5 {[%clk 0:02:09.3]} 23... Qf7 {[%clk
0:01:19]} 24. Bc4 {[%clk 0:02:03.4]} 24... Qe8 {[%clk 0:01:18.8]} 25. Bb3 {[%clk
0:02:03.5]} 25... Qc6 {[%clk 0:01:14.3]} 26. Rbf1 {[%clk 0:01:57.4]} 26... Ng6
{[%clk 0:01:12.5]} 27. f5 {[%clk 0:01:42.9]} 27... Ne7 {[%clk 0:01:12.2]} 28. g4
{[%clk 0:01:41.4]} 28... Bc5 {[%clk 0:01:06.5]} 29. Bc1 {[%clk 0:01:40]} 29...
Nc8 {[%clk 0:00:59.7]} 30. g5 {[%clk 0:01:21.4]} 30... fxg5 {[%clk 0:00:11.3]}
31. Bxg5 {[%clk 0:01:20.4]} 31... Rd6 {[%clk 0:00:06.1]} 32. Bc1 {[%clk
0:01:09.1]} 32... Rdf6 {[%clk 0:00:05]} 33. Bd5 {[%clk 0:00:40.1]} 33... Qxa4
{[%clk 0:00:03.4]} 34. Rg3 {[%clk 0:00:40.3]} 34... Ne7 {[%clk 0:00:02.8]} 35.
Qg4 {[%clk 0:00:34.8]} 35... g5 {[%clk 0:00:01.5]} 36. Bxg5 {[%clk 0:00:25.2]}
36... Nxd5 {[%clk 0:00:02]} 37. exd5 {[%clk 0:00:23.2]} 37... hxg5 {[%clk
0:00:01.5]} 38. Rh3+ {[%clk 0:00:20]} 38... Kg7 {[%clk 0:00:01.5]} 39. Qh5
{[%clk 0:00:18.1]} 39... Rg8 {[%clk 0:00:01.8]} 40. Qe2 {[%clk 0:00:10.2]} 40...
Kf8 {[%clk 0:00:01.7]} 41. Rh7 {[%clk 0:00:09.1]} 41... Qe8 {[%clk 0:00:01.9]}
42. h3 {[%clk 0:00:07]} 42... Bd6 {[%clk 0:00:02.6]} 43. c4 {[%clk 0:00:06.6]}
43... e4 {[%clk 0:00:03.1]} 44. Re1 {[%clk 0:00:05.9]} 44... Qe5 {[%clk
0:00:03.7]} 45. Kh1 {[%clk 0:00:06.3]} 45... Rxf5 {[%clk 0:00:03.7]} 46. Rf1
{[%clk 0:00:06]} 46... Rxf1+ {[%clk 0:00:03.2]} 47. Qxf1+ {[%clk 0:00:06.4]}
47... Qf4 {[%clk 0:00:04.1]} 48. Qe2 {[%clk 0:00:06.6]} 48... Qf3+ {[%clk
0:00:04]} 49. Qxf3+ {[%clk 0:00:06.9]} 49... exf3 {[%clk 0:00:04.9]} 50. Kg1
{[%clk 0:00:07.8]} 50... Rg7 {[%clk 0:00:05.3]} 51. Rh8+ {[%clk 0:00:07.2]}
51... Kf7 {[%clk 0:00:05.9]} 52. Kf2 {[%clk 0:00:07.7]} 52... Kg6 {[%clk
0:00:06.2]} 53. Kxf3 {[%clk 0:00:08]} 53... Rh7 {[%clk 0:00:06.7]} 54. Rc8
{[%clk 0:00:06.7]} 54... Rxh3+ {[%clk 0:00:06.2]} 55. Kg4 {[%clk 0:00:07.2]}
55... Rg3# {[%clk 0:00:06.5]} 0-1

[Event "*** SCC Grand Prix: Titled Tuesday Blitz"]
[Site "Chess.com"]
[Date "2020.10.06"]
[Round "2"]
[White "MattyDPerrine"]
[Black "chorejason"]
[Result "1/2-1/2"]
[WhiteElo "2395"]
[BlackElo "2151"]
[TimeControl "180+1"]
[EndTime "10:18:47 PDT"]
[Termination "Game drawn by repetition"]

1. e4 {[%clk 0:02:55.3]} 1... c5 {[%clk 0:03:00.1]} 2. Nf3 {[%clk 0:02:55.2]}
2... d6 {[%clk 0:03:00.5]} 3. Bb5+ {[%clk 0:02:55.1]} 3... Bd7 {[%clk
0:03:00.1]} 4. Bxd7+ {[%clk 0:02:55.2]} 4... Qxd7 {[%clk 0:03:00.7]} 5. c4
{[%clk 0:02:55.5]} 5... Nf6 {[%clk 0:02:51.6]} 6. Nc3 {[%clk 0:02:55.1]} 6... g6
{[%clk 0:02:44.1]} 7. d4 {[%clk 0:02:50.4]} 7... cxd4 {[%clk 0:02:35.3]} 8. Nxd4
{[%clk 0:02:51.3]} 8... Nc6 {[%clk 0:02:32.6]} 9. f3 {[%clk 0:02:50.2]} 9...
Nxd4 {[%clk 0:02:11.9]} 10. Qxd4 {[%clk 0:02:50.3]} 10... Bg7 {[%clk 0:02:12.1]}
11. Be3 {[%clk 0:02:50.8]} 11... O-O {[%clk 0:02:12.7]} 12. Qd2 {[%clk
0:02:50.8]} 12... a6 {[%clk 0:02:11.7]} 13. Rc1 {[%clk 0:02:35.8]} 13... Rab8
{[%clk 0:02:09.8]} 14. O-O {[%clk 0:02:22.8]} 14... Rfc8 {[%clk 0:02:10]} 15. b3
{[%clk 0:02:18.5]} 15... b5 {[%clk 0:02:10.7]} 16. Nd5 {[%clk 0:02:18.8]} 16...
bxc4 {[%clk 0:01:56.3]} 17. Nb6 {[%clk 0:02:13.3]} 17... Rxb6 {[%clk 0:01:36.4]}
18. Bxb6 {[%clk 0:02:14.2]} 18... c3 {[%clk 0:01:35.4]} 19. Rxc3 {[%clk
0:02:03.8]} 19... Rxc3 {[%clk 0:01:25.8]} 20. Qxc3 {[%clk 0:02:04.7]} 20... Nxe4
{[%clk 0:01:25.9]} 21. Qd3 {[%clk 0:02:04.8]} 21... Qc6 {[%clk 0:01:02]} 22.
Qxe4 {[%clk 0:01:52]} 22... Qxb6+ {[%clk 0:01:01.3]} 23. Kh1 {[%clk 0:01:52.7]}
23... Bf6 {[%clk 0:00:38.5]} 24. Rc1 {[%clk 0:01:46]} 24... Kg7 {[%clk
0:00:35.9]} 25. Qc6 {[%clk 0:01:14.2]} 25... Qe3 {[%clk 0:00:33.6]} 26. Qc2
{[%clk 0:01:05.1]} 26... h5 {[%clk 0:00:32.8]} 27. Rd1 {[%clk 0:01:00.7]} 27...
Be5 {[%clk 0:00:32.6]} 28. Qd3 {[%clk 0:00:59.2]} 28... Qf2 {[%clk 0:00:32.5]}
29. Qxa6 {[%clk 0:00:36.3]} 29... h4 {[%clk 0:00:30.6]} 30. a4 {[%clk
0:00:26.5]} 30... h3 {[%clk 0:00:30.1]} 31. Qf1 {[%clk 0:00:27.1]} 31... Qc2
{[%clk 0:00:25.6]} 32. g3 {[%clk 0:00:18.3]} 32... Qxb3 {[%clk 0:00:25.1]} 33.
Rb1 {[%clk 0:00:14.9]} 33... Qc2 {[%clk 0:00:25.2]} 34. Rc1 {[%clk 0:00:13.3]}
34... Qxa4 {[%clk 0:00:25.3]} 35. Qxh3 {[%clk 0:00:13.2]} 35... Qa2 {[%clk
0:00:24.8]} 36. Qf1 {[%clk 0:00:14.1]} 36... d5 {[%clk 0:00:23.4]} 37. Rd1
{[%clk 0:00:13.8]} 37... d4 {[%clk 0:00:22.8]} 38. f4 {[%clk 0:00:12.6]} 38...
Qd5+ {[%clk 0:00:22.2]} 39. Qg2 {[%clk 0:00:12.8]} 39... Qxg2+ {[%clk 0:00:22]}
40. Kxg2 {[%clk 0:00:13.7]} 40... Bf6 {[%clk 0:00:22.1]} 41. Kf3 {[%clk
0:00:14.1]} 41... e5 {[%clk 0:00:22.5]} 42. fxe5 {[%clk 0:00:07.9]} 42... Bxe5
{[%clk 0:00:22.8]} 43. Ke4 {[%clk 0:00:08.8]} 43... Kf6 {[%clk 0:00:23]} 44. Rb1
{[%clk 0:00:08.1]} 44... Ke6 {[%clk 0:00:19.8]} 45. Rb6+ {[%clk 0:00:08.2]}
45... Bd6 {[%clk 0:00:20.1]} 46. Kxd4 {[%clk 0:00:08.4]} 46... f5 {[%clk
0:00:20.6]} 47. Rb5 {[%clk 0:00:07.7]} 47... Kf6 {[%clk 0:00:20.2]} 48. Kd5
{[%clk 0:00:06.3]} 48... Ba3 {[%clk 0:00:20.4]} 49. Kd4 {[%clk 0:00:06.4]} 49...
Kg5 {[%clk 0:00:20.4]} 50. Ke3 {[%clk 0:00:06.8]} 50... Bb2 {[%clk 0:00:20.7]}
51. Kf3 {[%clk 0:00:06.8]} 51... Bc1 {[%clk 0:00:20.4]} 52. Rd5 {[%clk
0:00:07.1]} 52... Bb2 {[%clk 0:00:19.9]} 53. Rd6 {[%clk 0:00:07.4]} 53... Kh6
{[%clk 0:00:19.9]} 54. h4 {[%clk 0:00:07.2]} 54... Kh7 {[%clk 0:00:19.9]} 55.
Rc6 {[%clk 0:00:06.1]} 55... Bg7 {[%clk 0:00:20]} 56. Rc5 {[%clk 0:00:05.9]}
56... Kh6 {[%clk 0:00:20.1]} 57. Rd5 {[%clk 0:00:06]} 57... Kh5 {[%clk
0:00:20.3]} 58. Rd7 {[%clk 0:00:05.9]} 58... Kh6 {[%clk 0:00:20.9]} 59. Rb7
{[%clk 0:00:04.8]} 59... Kh7 {[%clk 0:00:21.2]} 60. g4 {[%clk 0:00:04]} 60...
fxg4+ {[%clk 0:00:21.1]} 61. Kxg4 {[%clk 0:00:04.9]} 61... Kh6 {[%clk
0:00:20.8]} 62. Rd7 {[%clk 0:00:05.8]} 62... Kh7 {[%clk 0:00:20.4]} 63. Rd5
{[%clk 0:00:06.4]} 63... Kh6 {[%clk 0:00:20.6]} 64. Rd6 {[%clk 0:00:07]} 64...
Kh7 {[%clk 0:00:20.7]} 65. Rc6 {[%clk 0:00:07.6]} 65... Be5 {[%clk 0:00:20.1]}
66. Re6 {[%clk 0:00:07.2]} 66... Bg7 {[%clk 0:00:20.7]} 67. Kg5 {[%clk
0:00:07.3]} 67... Bh6+ {[%clk 0:00:20]} 68. Kg4 {[%clk 0:00:07.9]} 68... Bg7
{[%clk 0:00:20.4]} 69. Re7 {[%clk 0:00:08.4]} 69... Kh6 {[%clk 0:00:20.3]} 70.
Re6 {[%clk 0:00:07.6]} 70... Kh7 {[%clk 0:00:20.4]} 1/2-1/2

[Event "*** SCC Grand Prix: Titled Tuesday Blitz"]
[Site "Chess.com"]
[Date "2020.10.06"]
[Round "2"]
[White "Jovidon91"]
[Black "K_A_S_T_O_R"]
[Result "0-1"]
[WhiteElo "2496"]
[BlackElo "2736"]
[TimeControl "180+1"]
[EndTime "10:18:49 PDT"]
[Termination "K_A_S_T_O_R won on time"]

1. d4 {[%clk 0:03:00]} 1... Nf6 {[%clk 0:02:58.4]} 2. c4 {[%clk 0:02:57.6]} 2...
e6 {[%clk 0:02:58.3]} 3. Nf3 {[%clk 0:02:55.1]} 3... c5 {[%clk 0:02:57.9]} 4.
Nc3 {[%clk 0:02:52.9]} 4... cxd4 {[%clk 0:02:54.7]} 5. Nxd4 {[%clk 0:02:52.4]}
5... a6 {[%clk 0:02:52.5]} 6. e3 {[%clk 0:02:48.2]} 6... Qc7 {[%clk 0:02:47.7]}
7. Be2 {[%clk 0:02:45.5]} 7... b6 {[%clk 0:02:47.8]} 8. O-O {[%clk 0:02:45.3]}
8... Bb7 {[%clk 0:02:48.3]} 9. b3 {[%clk 0:02:39]} 9... b5 {[%clk 0:02:35.3]}
10. Bb2 {[%clk 0:02:37.7]} 10... bxc4 {[%clk 0:02:35.3]} 11. Bxc4 {[%clk
0:02:37.7]} 11... d5 {[%clk 0:02:35.3]} 12. Be2 {[%clk 0:02:37.3]} 12... Bd6
{[%clk 0:02:35.8]} 13. h3 {[%clk 0:02:35.3]} 13... O-O {[%clk 0:02:21.3]} 14.
Rc1 {[%clk 0:02:35.6]} 14... Qe7 {[%clk 0:02:20.8]} 15. Na4 {[%clk 0:02:33]}
15... Nbd7 {[%clk 0:02:15.3]} 16. Nc6 {[%clk 0:02:32]} 16... Bxc6 {[%clk
0:02:12.1]} 17. Rxc6 {[%clk 0:02:32.9]} 17... a5 {[%clk 0:02:11.2]} 18. Qc2
{[%clk 0:02:25]} 18... Be5 {[%clk 0:02:09.9]} 19. Rc1 {[%clk 0:02:18.5]} 19...
h6 {[%clk 0:02:09.5]} 20. Nb6 {[%clk 0:02:08.3]} 20... Bxb2 {[%clk 0:02:06.8]}
21. Qxb2 {[%clk 0:01:59.1]} 21... Nxb6 {[%clk 0:02:02.5]} 22. Rxb6 {[%clk
0:02:00]} 22... Rfc8 {[%clk 0:02:02.2]} 23. Bd3 {[%clk 0:01:48.1]} 23... Qd7
{[%clk 0:01:58.3]} 24. Bb5 {[%clk 0:01:27.7]} 24... Qd8 {[%clk 0:01:54]} 25.
Rbc6 {[%clk 0:01:27.1]} 25... Rxc6 {[%clk 0:01:53.9]} 26. Rxc6 {[%clk
0:01:27.5]} 26... Rb8 {[%clk 0:01:30.6]} 27. a4 {[%clk 0:01:25]} 27... Rc8
{[%clk 0:01:30.4]} 28. b4 {[%clk 0:01:10.5]} 28... axb4 {[%clk 0:01:18.5]} 29.
Qxb4 {[%clk 0:01:11.4]} 29... Ra8 {[%clk 0:01:16]} 30. Rc2 {[%clk 0:00:40.2]}
30... Ne4 {[%clk 0:01:10.1]} 31. Bd3 {[%clk 0:00:25.6]} 31... Rb8 {[%clk
0:01:08.5]} 32. Qa3 {[%clk 0:00:21.1]} 32... Qa5 {[%clk 0:00:56.2]} 33. Bxe4
{[%clk 0:00:18.2]} 33... dxe4 {[%clk 0:00:56.3]} 34. Qa1 {[%clk 0:00:14.7]}
34... Rb4 {[%clk 0:00:52.9]} 35. Ra2 {[%clk 0:00:13.9]} 35... e5 {[%clk
0:00:53]} 36. Kh2 {[%clk 0:00:14.3]} 36... g6 {[%clk 0:00:52.4]} 37. Qd1 {[%clk
0:00:14.6]} 37... Kg7 {[%clk 0:00:52.1]} 38. Qd7 {[%clk 0:00:15.1]} 38... Rb1
{[%clk 0:00:49.9]} 39. Rd2 {[%clk 0:00:14.7]} 39... Ra1 {[%clk 0:00:46.9]} 40.
Rd5 {[%clk 0:00:14.3]} 40... Qe1 {[%clk 0:00:44.8]} 41. Rxe5 {[%clk 0:00:14.2]}
41... Qxf2 {[%clk 0:00:42.7]} 42. Qd4 {[%clk 0:00:14.1]} 42... Qg1+ {[%clk
0:00:33.2]} 43. Kg3 {[%clk 0:00:13.7]} 43... Qe1+ {[%clk 0:00:33.8]} 44. Kh2
{[%clk 0:00:13.3]} 44... Kh7 {[%clk 0:00:33.1]} 45. Rxe4 {[%clk 0:00:11.3]}
45... Qg1+ {[%clk 0:00:30.7]} 46. Kg3 {[%clk 0:00:11.4]} 46... Ra2 {[%clk
0:00:31.3]} 47. Rg4 {[%clk 0:00:06.9]} 47... Rxg2+ {[%clk 0:00:29.1]} 48. Kf4
{[%clk 0:00:06.9]} 48... Qf2+ {[%clk 0:00:29.4]} 49. Ke5 {[%clk 0:00:06.9]}
49... Qf5+ {[%clk 0:00:29.4]} 50. Kd6 {[%clk 0:00:07.1]} 50... Qe6+ {[%clk
0:00:29.9]} 51. Kc5 {[%clk 0:00:04.3]} 51... Rc2+ {[%clk 0:00:30.3]} 52. Kb4
{[%clk 0:00:04.8]} 52... Qa2 {[%clk 0:00:27.7]} 53. Ka5 {[%clk 0:00:03.5]} 53...
Qe6 {[%clk 0:00:24.1]} 54. Re4 {[%clk 0:00:03.4]} 54... Qc6 {[%clk 0:00:23.3]}
55. Re5 {[%clk 0:00:03]} 55... Rc4 {[%clk 0:00:22.6]} 56. Qd1 {[%clk 0:00:01.5]}
56... Qc7+ {[%clk 0:00:21.5]} 57. Kb5 {[%clk 0:00:01.7]} 57... Rc6 {[%clk
0:00:21.8]} 58. Rc5 {[%clk 0:00:01.8]} 58... Qb6+ {[%clk 0:00:21.6]} 0-1